[Event "Early-Titled-Tuesday-Blitz-September-26-2023"]
[Site "Chess.com"]
[Date "2023.09.26"]
[Round "3"]
[White "GM_Huschenbeth"]
[Black "Vladimir_Zakhartsov"]
[Result "0-1"]
[WhiteElo "2634"]
[BlackElo "2849"]
[TimeControl "180+1"]
[EndTime "8:28:32 PDT"]
[Termination "Vladimir_Zakhartsov won on time"]

1. e4 {[%clk 0:03:00]} 1... c5 {[%clk 0:02:57.9]} 2. Nf3 {[%clk 0:02:59.2]} 2...
d6 {[%clk 0:02:58.2]} 3. d4 {[%clk 0:02:59.2]} 3... Nf6 {[%clk 0:02:58.9]} 4.
Nc3 {[%clk 0:02:59.4]} 4... cxd4 {[%clk 0:02:59.5]} 5. Nxd4 {[%clk 0:02:58.6]}
5... g6 {[%clk 0:03:00]} 6. Be3 {[%clk 0:02:56.9]} 6... Bg7 {[%clk 0:03:00.3]}
7. Be2 {[%clk 0:02:57.2]} 7... Nc6 {[%clk 0:02:59.9]} 8. Qd2 {[%clk 0:02:57.2]}
8... O-O {[%clk 0:02:59]} 9. O-O-O {[%clk 0:02:57.3]} 9... Nxd4 {[%clk
0:02:45.6]} 10. Bxd4 {[%clk 0:02:55.9]} 10... Be6 {[%clk 0:02:46.2]} 11. h4
{[%clk 0:02:55.8]} 11... Qa5 {[%clk 0:02:43.9]} 12. Qg5 {[%clk 0:02:55.2]} 12...
Qc7 {[%clk 0:02:13.7]} 13. h5 {[%clk 0:02:50.4]} 13... h6 {[%clk 0:02:03.1]} 14.
Qd2 {[%clk 0:02:49.9]} 14... g5 {[%clk 0:02:02.4]} 15. f4 {[%clk 0:02:43.5]}
15... gxf4 {[%clk 0:01:44.8]} 16. Qxf4 {[%clk 0:02:44.3]} 16... Rac8 {[%clk
0:01:17.2]} 17. Rd3 {[%clk 0:02:43.3]} 17... Nh7 {[%clk 0:01:00.2]} 18. Rg3
{[%clk 0:02:28.9]} 18... Ng5 {[%clk 0:00:49]} 19. Rxg5 {[%clk 0:02:23.1]} 19...
hxg5 {[%clk 0:00:49.1]} 20. Qxg5 {[%clk 0:02:23.8]} 20... f6 {[%clk 0:00:48.3]}
21. Qg3 {[%clk 0:02:22.6]} 21... Kh7 {[%clk 0:00:42.1]} 22. h6 {[%clk
0:02:19.9]} 22... Bh8 {[%clk 0:00:41.8]} 23. Bd3 {[%clk 0:02:15.7]} 23... Rg8
{[%clk 0:00:37.9]} 24. e5+ {[%clk 0:02:14.4]} 24... f5 {[%clk 0:00:38.3]} 25.
Qf3 {[%clk 0:02:07.8]} 25... Rcf8 {[%clk 0:00:27.2]} 26. g4 {[%clk 0:02:07.5]}
26... Bxe5 {[%clk 0:00:16.5]} 27. Bxe5 {[%clk 0:02:03.4]} 27... dxe5 {[%clk
0:00:17.4]} 28. gxf5 {[%clk 0:02:03.2]} 28... Kh8 {[%clk 0:00:18]} 29. Qh5
{[%clk 0:01:20.3]} 29... Bc4 {[%clk 0:00:16.9]} 30. Be4 {[%clk 0:01:11.8]} 30...
Qc5 {[%clk 0:00:16.9]} 31. Qh2 {[%clk 0:00:38.1]} 31... Qe3+ {[%clk 0:00:15.8]}
32. Kb1 {[%clk 0:00:38]} 32... Qf4 {[%clk 0:00:14.4]} 33. Qh3 {[%clk 0:00:15.4]}
33... Rg3 {[%clk 0:00:12.8]} 34. Qh5 {[%clk 0:00:15.3]} 34... Rxc3 {[%clk
0:00:08.2]} 35. bxc3 {[%clk 0:00:14.1]} 35... Qxe4 {[%clk 0:00:08.2]} 36. Rh4
{[%clk 0:00:05.3]} 36... Qd5 {[%clk 0:00:06.5]} 37. Qg6 {[%clk 0:00:03.1]} 37...
Rg8 {[%clk 0:00:06.9]} 38. Qh5 {[%clk 0:00:02.5]} 38... Rg1+ {[%clk 0:00:06.2]}
39. Kb2 {[%clk 0:00:02.9]} 39... Qb5+ {[%clk 0:00:06.8]} 40. Ka3 {[%clk
0:00:03.7]} 40... Qa5+ {[%clk 0:00:06.6]} 0-1

[Event "Early-Titled-Tuesday-Blitz-September-26-2023"]
[Site "Chess.com"]
[Date "2023.09.26"]
[Round "3"]
[White "Druid24"]
[Black "quvnoq_muxlis"]
[Result "1-0"]
[WhiteElo "2632"]
[BlackElo "2812"]
[TimeControl "180+1"]
[EndTime "8:28:35 PDT"]
[Termination "Druid24 won by resignation"]

1. e4 {[%clk 0:03:00.9]} 1... c5 {[%clk 0:02:59.6]} 2. Nc3 {[%clk 0:03:00.8]}
2... Nc6 {[%clk 0:02:59.8]} 3. Bb5 {[%clk 0:03:00.8]} 3... Nd4 {[%clk
0:02:59.6]} 4. Bc4 {[%clk 0:03:00.8]} 4... e6 {[%clk 0:02:59.8]} 5. Nge2 {[%clk
0:03:01]} 5... Qc7 {[%clk 0:02:57.8]} 6. O-O {[%clk 0:02:59.7]} 6... a6 {[%clk
0:02:58]} 7. d3 {[%clk 0:02:59.4]} 7... Nf6 {[%clk 0:02:52.9]} 8. h3 {[%clk
0:02:56.7]} 8... b6 {[%clk 0:02:39.6]} 9. Be3 {[%clk 0:02:56.2]} 9... Nxe2+
{[%clk 0:02:34.9]} 10. Qxe2 {[%clk 0:02:57.1]} 10... Bb7 {[%clk 0:02:35.5]} 11.
f4 {[%clk 0:02:55.9]} 11... d6 {[%clk 0:02:35.2]} 12. Rae1 {[%clk 0:02:48.4]}
12... Be7 {[%clk 0:02:35.1]} 13. Bb3 {[%clk 0:02:44.6]} 13... d5 {[%clk
0:01:38.3]} 14. exd5 {[%clk 0:02:25.7]} 14... exd5 {[%clk 0:01:37.4]} 15. Bf2
{[%clk 0:02:22.3]} 15... Kf8 {[%clk 0:01:35.6]} 16. Bh4 {[%clk 0:02:15.4]} 16...
d4 {[%clk 0:01:15.9]} 17. Bxf6 {[%clk 0:02:13.5]} 17... Bxf6 {[%clk 0:00:43.3]}
18. Ne4 {[%clk 0:02:12.2]} 18... Be7 {[%clk 0:00:39.9]} 19. f5 {[%clk
0:02:10.4]} 19... Bxe4 {[%clk 0:00:27.9]} 20. Qxe4 {[%clk 0:02:09.7]} 20... Rd8
{[%clk 0:00:28.3]} 21. f6 {[%clk 0:01:51.5]} 21... Bxf6 {[%clk 0:00:26.4]} 22.
Rxf6 {[%clk 0:01:51.7]} 22... gxf6 {[%clk 0:00:27.3]} 23. Qf5 {[%clk 0:01:48.9]}
23... Kg7 {[%clk 0:00:25.2]} 24. Re4 {[%clk 0:01:47.8]} 24... Rhe8 {[%clk
0:00:18.3]} 25. Rg4+ {[%clk 0:01:47.8]} 25... Kf8 {[%clk 0:00:18.9]} 26. Qxf6
{[%clk 0:01:43.2]} 26... Rd6 {[%clk 0:00:12.1]} 27. Qh8+ {[%clk 0:01:43.1]}
27... Ke7 {[%clk 0:00:12.5]} 28. Re4+ {[%clk 0:01:43.9]} 28... Re6 {[%clk
0:00:11.7]} 29. Qxh7 {[%clk 0:01:30.5]} 29... Rxe4 {[%clk 0:00:10.8]} 30. Qxe4+
{[%clk 0:01:24]} 30... Kf8 {[%clk 0:00:09.9]} 31. Qf3 {[%clk 0:01:24.9]} 31...
Re3 {[%clk 0:00:07.4]} 32. Qf6 {[%clk 0:01:00.7]} 32... b5 {[%clk 0:00:07.2]}
33. Bd5 {[%clk 0:01:00]} 33... c4 {[%clk 0:00:05.4]} 34. dxc4 {[%clk 0:00:57.7]}
34... bxc4 {[%clk 0:00:06.3]} 35. Qh8+ {[%clk 0:00:54.9]} 35... Ke7 {[%clk
0:00:05.1]} 36. Qxd4 {[%clk 0:00:55.8]} 36... Qg3 {[%clk 0:00:05.1]} 37. Bxc4
{[%clk 0:00:49.8]} 37... Re1+ {[%clk 0:00:05]} 38. Bf1 {[%clk 0:00:49.8]} 38...
Re6 {[%clk 0:00:02.5]} 39. Qc5+ {[%clk 0:00:46.7]} 39... Kf6 {[%clk 0:00:02.9]}
40. Qf2+ {[%clk 0:00:46.3]} 40... Qxf2+ {[%clk 0:00:02.9]} 41. Kxf2 {[%clk
0:00:47.2]} 41... Rb6 {[%clk 0:00:03.3]} 42. b3 {[%clk 0:00:46.5]} 42... a5
{[%clk 0:00:04]} 43. g4 {[%clk 0:00:40.2]} 43... Rc6 {[%clk 0:00:02.5]} 44. c4
{[%clk 0:00:38.8]} 44... Kg5 {[%clk 0:00:01.5]} 45. Kg3 {[%clk 0:00:37.6]} 45...
Rd6 {[%clk 0:00:02.2]} 46. h4+ {[%clk 0:00:35.1]} 46... Kf6 {[%clk 0:00:02.8]}
47. g5+ {[%clk 0:00:34.7]} 47... Ke5 {[%clk 0:00:02.6]} 48. c5 {[%clk
0:00:32.9]} 48... Rd2 {[%clk 0:00:02.7]} 49. h5 {[%clk 0:00:29.8]} 49... Kf5
{[%clk 0:00:02.4]} 50. c6 {[%clk 0:00:26.7]} 50... Kxg5 {[%clk 0:00:02.4]} 51.
c7 {[%clk 0:00:24.2]} 1-0

[Event "Early-Titled-Tuesday-Blitz-September-26-2023"]
[Site "Chess.com"]
[Date "2023.09.26"]
[Round "3"]
[White "Legendinunknown"]
[Black "WPWPWP-2015"]
[Result "0-1"]
[WhiteElo "2805"]
[BlackElo "2526"]
[TimeControl "180+1"]
[EndTime "8:28:36 PDT"]
[Termination "WPWPWP-2015 won on time"]

1. d4 {[%clk 0:03:00.9]} 1... Nf6 {[%clk 0:02:59.1]} 2. c4 {[%clk 0:03:00.9]}
2... e6 {[%clk 0:02:59.2]} 3. Nc3 {[%clk 0:03:00.5]} 3... Bb4 {[%clk 0:02:58.8]}
4. f3 {[%clk 0:03:00.7]} 4... d5 {[%clk 0:02:58]} 5. a3 {[%clk 0:03:00.1]} 5...
Bxc3+ {[%clk 0:02:56.9]} 6. bxc3 {[%clk 0:03:01]} 6... c5 {[%clk 0:02:57]} 7.
cxd5 {[%clk 0:03:01.4]} 7... Nxd5 {[%clk 0:02:55.3]} 8. dxc5 {[%clk 0:02:58.1]}
8... Qa5 {[%clk 0:02:49.6]} 9. e4 {[%clk 0:02:57.5]} 9... Nf6 {[%clk 0:02:48.6]}
10. Be3 {[%clk 0:02:56.1]} 10... Nc6 {[%clk 0:02:47.6]} 11. Kf2 {[%clk
0:02:55.4]} 11... O-O {[%clk 0:02:46.6]} 12. Ne2 {[%clk 0:02:54.1]} 12... e5
{[%clk 0:02:46.3]} 13. Ng3 {[%clk 0:02:50.8]} 13... Rd8 {[%clk 0:02:43.5]} 14.
Qc2 {[%clk 0:02:48.8]} 14... Be6 {[%clk 0:02:38.6]} 15. Be2 {[%clk 0:02:48.1]}
15... h6 {[%clk 0:02:36.4]} 16. Rhd1 {[%clk 0:02:45.4]} 16... Rxd1 {[%clk
0:02:31.3]} 17. Bxd1 {[%clk 0:02:46.3]} 17... Rd8 {[%clk 0:02:28.9]} 18. Be2
{[%clk 0:02:45.3]} 18... Nd7 {[%clk 0:02:17.9]} 19. Qb2 {[%clk 0:02:37.8]} 19...
Nxc5 {[%clk 0:02:11.3]} 20. Kg1 {[%clk 0:02:34.1]} 20... Nb3 {[%clk 0:01:59]}
21. Rd1 {[%clk 0:02:31.2]} 21... Rxd1+ {[%clk 0:01:46.6]} 22. Bxd1 {[%clk
0:02:32.1]} 22... Nc5 {[%clk 0:01:45.2]} 23. h4 {[%clk 0:02:28]} 23... b6 {[%clk
0:01:44.6]} 24. Nf5 {[%clk 0:02:24.4]} 24... Nd3 {[%clk 0:01:23.4]} 25. Qd2
{[%clk 0:02:20.6]} 25... Nc5 {[%clk 0:01:18.5]} 26. Be2 {[%clk 0:02:07.7]} 26...
Nb7 {[%clk 0:00:42.7]} 27. Kh2 {[%clk 0:01:58.7]} 27... Qxa3 {[%clk 0:00:36.5]}
28. Bb5 {[%clk 0:01:54.1]} 28... Bxf5 {[%clk 0:00:22.2]} 29. Bxc6 {[%clk
0:01:51.6]} 29... Bc8 {[%clk 0:00:22.1]} 30. Qd5 {[%clk 0:01:37.1]} 30... Qe7
{[%clk 0:00:20.6]} 31. g3 {[%clk 0:01:33.7]} 31... Nc5 {[%clk 0:00:17.9]} 32.
Qd2 {[%clk 0:00:49.3]} 32... Qc7 {[%clk 0:00:17.5]} 33. Bd5 {[%clk 0:00:47.6]}
33... Be6 {[%clk 0:00:17.1]} 34. c4 {[%clk 0:00:46]} 34... Kh7 {[%clk
0:00:16.6]} 35. h5 {[%clk 0:00:43.9]} 35... Bc8 {[%clk 0:00:13.7]} 36. f4 {[%clk
0:00:43.3]} 36... a5 {[%clk 0:00:13.8]} 37. Qc3 {[%clk 0:00:38.9]} 37... f6
{[%clk 0:00:13.3]} 38. Qd2 {[%clk 0:00:32.6]} 38... Bg4 {[%clk 0:00:13.1]} 39.
Kg2 {[%clk 0:00:19.1]} 39... Bxh5 {[%clk 0:00:13.2]} 40. f5 {[%clk 0:00:19.4]}
40... Bf7 {[%clk 0:00:12.8]} 41. Bxc5 {[%clk 0:00:19.7]} 41... bxc5 {[%clk
0:00:12.5]} 42. Bxf7 {[%clk 0:00:19.7]} 42... Qxf7 {[%clk 0:00:12.5]} 43. Qxa5
{[%clk 0:00:20.4]} 43... Qxc4 {[%clk 0:00:12.7]} 44. Qa8 {[%clk 0:00:19.8]}
44... Qc2+ {[%clk 0:00:12.3]} 0-1

[Event "Early-Titled-Tuesday-Blitz-September-26-2023"]
[Site "Chess.com"]
[Date "2023.09.26"]
[Round "3"]
[White "Yuruultei"]
[Black "gueraumasague"]
[Result "0-1"]
[WhiteElo "2278"]
[BlackElo "2479"]
[TimeControl "180+1"]
[EndTime "8:28:36 PDT"]
[Termination "gueraumasague won by resignation"]

1. d4 {[%clk 0:02:02.1]} 1... g6 {[%clk 0:03:00.9]} 2. c4 {[%clk 0:02:02.9]}
2... Bg7 {[%clk 0:03:00.3]} 3. e4 {[%clk 0:02:03.4]} 3... d6 {[%clk 0:03:00.1]}
4. Nc3 {[%clk 0:02:03.2]} 4... Nc6 {[%clk 0:03:00.3]} 5. Nf3 {[%clk 0:02:02.9]}
5... Bg4 {[%clk 0:03:00]} 6. Be3 {[%clk 0:02:01.2]} 6... e5 {[%clk 0:03:00.4]}
7. d5 {[%clk 0:01:54.5]} 7... Nd4 {[%clk 0:02:59.3]} 8. Be2 {[%clk 0:01:55]}
8... Bxf3 {[%clk 0:02:48.2]} 9. Bxf3 {[%clk 0:01:54.4]} 9... Ne7 {[%clk
0:02:48.7]} 10. O-O {[%clk 0:01:54.7]} 10... O-O {[%clk 0:02:46.1]} 11. Nb5
{[%clk 0:01:55.2]} 11... Nxf3+ {[%clk 0:02:42.9]} 12. Qxf3 {[%clk 0:01:54.5]}
12... f5 {[%clk 0:02:41.3]} 13. Rad1 {[%clk 0:01:43.6]} 13... Qd7 {[%clk
0:02:25.9]} 14. Nc3 {[%clk 0:01:29.1]} 14... f4 {[%clk 0:02:09.8]} 15. Bc1
{[%clk 0:01:21.6]} 15... g5 {[%clk 0:02:10.1]} 16. h3 {[%clk 0:01:20]} 16... Rf6
{[%clk 0:02:05.8]} 17. Qg4 {[%clk 0:01:16]} 17... Qxg4 {[%clk 0:01:31.7]} 18.
hxg4 {[%clk 0:01:16.9]} 18... h5 {[%clk 0:01:32.3]} 19. gxh5 {[%clk 0:01:14.8]}
19... g4 {[%clk 0:01:28.4]} 20. f3 {[%clk 0:01:11]} 20... g3 {[%clk 0:01:24.3]}
21. Rfe1 {[%clk 0:01:10.1]} 21... a6 {[%clk 0:00:57.3]} 22. Kf1 {[%clk
0:01:02.8]} 22... Rh6 {[%clk 0:00:57.8]} 23. Ke2 {[%clk 0:01:01.9]} 23... Kf7
{[%clk 0:00:56.5]} 24. Rg1 {[%clk 0:01:02.8]} 24... Rxh5 {[%clk 0:00:53.3]} 25.
b4 {[%clk 0:01:02.7]} 25... a5 {[%clk 0:00:51.2]} 26. a3 {[%clk 0:01:00.4]}
26... axb4 {[%clk 0:00:50]} 27. axb4 {[%clk 0:01:01.3]} 27... Bf6 {[%clk
0:00:46.2]} 28. Bb2 {[%clk 0:01:00.8]} 28... Rh2 {[%clk 0:00:35.9]} 29. c5
{[%clk 0:00:57.2]} 29... Ng6 {[%clk 0:00:31.8]} 30. Rb1 {[%clk 0:00:26.7]} 30...
Nh4 {[%clk 0:00:31]} 31. Kf1 {[%clk 0:00:26.7]} 31... Be7 {[%clk 0:00:26.4]} 32.
Nb5 {[%clk 0:00:22.5]} 32... Ra2 {[%clk 0:00:17.8]} 33. Nc3 {[%clk 0:00:19.6]}
33... Ra8 {[%clk 0:00:15]} 34. Nb5 {[%clk 0:00:19.4]} 34... Rc8 {[%clk
0:00:14.7]} 35. Rc1 {[%clk 0:00:17.8]} 35... dxc5 {[%clk 0:00:13.1]} 36. bxc5
{[%clk 0:00:17.2]} 36... c6 {[%clk 0:00:14]} 37. dxc6 {[%clk 0:00:10.9]} 37...
bxc6 {[%clk 0:00:13.4]} 38. Nd6+ {[%clk 0:00:05.6]} 38... Bxd6 {[%clk
0:00:13.7]} 39. cxd6 {[%clk 0:00:06.5]} 39... Nxf3 {[%clk 0:00:14.3]} 40. gxf3
{[%clk 0:00:05.4]} 40... Rxb2 {[%clk 0:00:14.8]} 41. Rg2 {[%clk 0:00:04.6]}
41... Rxg2 {[%clk 0:00:12.9]} 42. Kxg2 {[%clk 0:00:04]} 42... Ke6 {[%clk
0:00:13.8]} 43. Rd1 {[%clk 0:00:04.3]} 43... Rd8 {[%clk 0:00:14.1]} 44. Kf1
{[%clk 0:00:05.2]} 44... Rxd6 {[%clk 0:00:14.4]} 45. Kg2 {[%clk 0:00:06.1]}
45... Rxd1 {[%clk 0:00:14.5]} 0-1

[Event "Early-Titled-Tuesday-Blitz-September-26-2023"]
[Site "Chess.com"]
[Date "2023.09.26"]
[Round "3"]
[White "Krakozia"]
[Black "Fy_Rakotomaharo"]
[Result "1-0"]
[WhiteElo "3032"]
[BlackElo "2710"]
[TimeControl "180+1"]
[EndTime "8:28:38 PDT"]
[Termination "Krakozia won on time"]

1. Nf3 {[%clk 0:02:56.2]} 1... Nf6 {[%clk 0:02:59.7]} 2. g3 {[%clk 0:02:55.8]}
2... d5 {[%clk 0:03:00.2]} 3. Bg2 {[%clk 0:02:56.2]} 3... e6 {[%clk 0:03:00.2]}
4. O-O {[%clk 0:02:56]} 4... Be7 {[%clk 0:03:00.9]} 5. d4 {[%clk 0:02:56.4]}
5... O-O {[%clk 0:03:01.6]} 6. c4 {[%clk 0:02:56.1]} 6... a5 {[%clk 0:03:02.3]}
7. Qc2 {[%clk 0:02:53.5]} 7... Nc6 {[%clk 0:03:01.3]} 8. a3 {[%clk 0:02:45.1]}
8... a4 {[%clk 0:03:01.4]} 9. Bf4 {[%clk 0:02:39.8]} 9... dxc4 {[%clk
0:02:59.3]} 10. Qxc4 {[%clk 0:02:40]} 10... Nd5 {[%clk 0:02:59.4]} 11. Nc3
{[%clk 0:02:38.3]} 11... Nxf4 {[%clk 0:02:45.2]} 12. gxf4 {[%clk 0:02:39.2]}
12... Bd7 {[%clk 0:02:45.9]} 13. Rad1 {[%clk 0:02:21.6]} 13... Na5 {[%clk
0:02:28.5]} 14. Qd3 {[%clk 0:02:21.5]} 14... c5 {[%clk 0:02:21.9]} 15. d5 {[%clk
0:02:02.3]} 15... Bf6 {[%clk 0:01:31.5]} 16. e4 {[%clk 0:01:36.1]} 16... c4
{[%clk 0:00:59.9]} 17. Qc2 {[%clk 0:01:28]} 17... Bxc3 {[%clk 0:00:58.8]} 18.
Qxc3 {[%clk 0:01:01.5]} 18... exd5 {[%clk 0:00:55.9]} 19. Rxd5 {[%clk
0:01:02.4]} 19... Qc7 {[%clk 0:00:48.2]} 20. Rfd1 {[%clk 0:00:48.7]} 20... Bc6
{[%clk 0:00:40.1]} 21. Re5 {[%clk 0:00:28.2]} 21... f6 {[%clk 0:00:38.7]} 22.
Re6 {[%clk 0:00:20.3]} 22... Qxf4 {[%clk 0:00:37.6]} 23. Nd4 {[%clk 0:00:17.2]}
23... Qg4 {[%clk 0:00:38]} 24. f3 {[%clk 0:00:14.6]} 24... Qg5 {[%clk
0:00:33.1]} 25. Nf5 {[%clk 0:00:14.5]} 25... Rad8 {[%clk 0:00:25.6]} 26. Rdd6
{[%clk 0:00:08]} 26... Rxd6 {[%clk 0:00:18.2]} 27. Rxd6 {[%clk 0:00:08.9]} 27...
b6 {[%clk 0:00:09]} 28. Ne7+ {[%clk 0:00:07.6]} 28... Kf7 {[%clk 0:00:05]} 29.
Nxc6 {[%clk 0:00:07.7]} 29... Qc5+ {[%clk 0:00:04.3]} 30. Qd4 {[%clk 0:00:08.3]}
30... Qxd4+ {[%clk 0:00:02.1]} 31. Nxd4 {[%clk 0:00:08.3]} 31... Nb3 {[%clk
0:00:02.2]} 32. Bf1 {[%clk 0:00:06.9]} 32... c3 {[%clk 0:00:02]} 33. bxc3 {[%clk
0:00:06.1]} 33... Kg6 {[%clk 0:00:02.9]} 34. Nf5 {[%clk 0:00:06]} 34... Rc8
{[%clk 0:00:02.6]} 35. Rd7 {[%clk 0:00:06.3]} 35... Kg5 {[%clk 0:00:02.9]} 36.
Rxg7+ {[%clk 0:00:06.6]} 36... Kf4 {[%clk 0:00:03.5]} 37. Kf2 {[%clk 0:00:07.2]}
37... Rxc3 {[%clk 0:00:03]} 38. Be2 {[%clk 0:00:07.8]} 38... Rc2 {[%clk
0:00:03]} 39. Ng3 {[%clk 0:00:07.1]} 39... Nc1 {[%clk 0:00:02.9]} 40. Rd7 {[%clk
0:00:06.3]} 40... Ra2 {[%clk 0:00:02.4]} 41. Rd5 {[%clk 0:00:06.7]} 41... Nxe2
{[%clk 0:00:01.8]} 42. Nxe2+ {[%clk 0:00:07.3]} 1-0

[Event "Early-Titled-Tuesday-Blitz-September-26-2023"]
[Site "Chess.com"]
[Date "2023.09.26"]
[Round "3"]
[White "Kotofeyca"]
[Black "ashookk"]
[Result "0-1"]
[WhiteElo "2387"]
[BlackElo "2232"]
[TimeControl "180+1"]
[EndTime "8:28:38 PDT"]
[Termination "ashookk won on time"]

1. d4 {[%clk 0:03:00]} 1... Nf6 {[%clk 0:02:58.6]} 2. c4 {[%clk 0:02:59.9]} 2...
c5 {[%clk 0:02:59.2]} 3. Nf3 {[%clk 0:03:00]} 3... g6 {[%clk 0:02:58.6]} 4. Nc3
{[%clk 0:03:00]} 4... Bg7 {[%clk 0:02:59.2]} 5. g3 {[%clk 0:03:00.1]} 5... O-O
{[%clk 0:02:59.5]} 6. Bg2 {[%clk 0:03:00.5]} 6... d6 {[%clk 0:03:00.1]} 7. O-O
{[%clk 0:03:00.1]} 7... Nc6 {[%clk 0:03:00.7]} 8. d5 {[%clk 0:03:00]} 8... Na5
{[%clk 0:03:00.9]} 9. Nd2 {[%clk 0:02:59.7]} 9... a6 {[%clk 0:03:01.3]} 10. a3
{[%clk 0:02:57.1]} 10... b5 {[%clk 0:03:00.9]} 11. cxb5 {[%clk 0:02:55.3]} 11...
axb5 {[%clk 0:03:01.8]} 12. b4 {[%clk 0:02:51.4]} 12... Nd7 {[%clk 0:02:38.6]}
13. Bb2 {[%clk 0:02:46]} 13... Nc4 {[%clk 0:02:37.6]} 14. Nxc4 {[%clk
0:02:45.4]} 14... bxc4 {[%clk 0:02:38.5]} 15. b5 {[%clk 0:02:36.1]} 15... Qa5
{[%clk 0:02:37.5]} 16. Qc2 {[%clk 0:02:36.4]} 16... Nb6 {[%clk 0:02:29.2]} 17.
a4 {[%clk 0:02:34.8]} 17... Bf5 {[%clk 0:01:08.3]} 18. e4 {[%clk 0:02:34]} 18...
Bc8 {[%clk 0:01:08.4]} 19. h4 {[%clk 0:02:29.5]} 19... Nd7 {[%clk 0:01:06.9]}
20. Rfb1 {[%clk 0:01:59.9]} 20... Ne5 {[%clk 0:01:04.2]} 21. Bf1 {[%clk
0:01:55.9]} 21... Nf3+ {[%clk 0:01:01.9]} 22. Kg2 {[%clk 0:01:53.4]} 22... Nd4
{[%clk 0:01:00.4]} 23. Qd2 {[%clk 0:00:59.3]} 23... Nb3 {[%clk 0:01:00.6]} 24.
Qe3 {[%clk 0:00:59.6]} 24... Nxa1 {[%clk 0:00:59.4]} 25. Bxa1 {[%clk 0:00:56.5]}
25... Bd4 {[%clk 0:00:59.7]} 26. Qd2 {[%clk 0:00:53.3]} 26... f5 {[%clk
0:00:51.3]} 27. exf5 {[%clk 0:00:39.2]} 27... Rxf5 {[%clk 0:00:49.5]} 28. f3
{[%clk 0:00:36.7]} 28... Bd7 {[%clk 0:00:42]} 29. Bxc4 {[%clk 0:00:36.5]} 29...
Raf8 {[%clk 0:00:42.1]} 30. f4 {[%clk 0:00:32.1]} 30... R5f7 {[%clk 0:00:37.6]}
31. Bd3 {[%clk 0:00:23.6]} 31... Rc8 {[%clk 0:00:32.5]} 32. Ne4 {[%clk
0:00:17.6]} 32... Qxd2+ {[%clk 0:00:31]} 33. Nxd2 {[%clk 0:00:16.9]} 33... Ra8
{[%clk 0:00:16.7]} 34. Nc4 {[%clk 0:00:09.2]} 34... Rxa4 {[%clk 0:00:13.7]} 35.
Bxd4 {[%clk 0:00:08]} 35... cxd4 {[%clk 0:00:14.6]} 36. Nb6 {[%clk 0:00:05.7]}
36... Bg4 {[%clk 0:00:10.8]} 37. Nxa4 {[%clk 0:00:04.5]} 37... Rf8 {[%clk
0:00:11]} 38. b6 {[%clk 0:00:04.4]} 38... Rb8 {[%clk 0:00:11.9]} 39. b7 {[%clk
0:00:04.5]} 39... Bd7 {[%clk 0:00:12.6]} 40. Bb5 {[%clk 0:00:01.5]} 40... Bf5
{[%clk 0:00:11.7]} 0-1

[Event "Early-Titled-Tuesday-Blitz-September-26-2023"]
[Site "Chess.com"]
[Date "2023.09.26"]
[Round "3"]
[White "KIEV-1"]
[Black "ExchangeAB"]
[Result "0-1"]
[WhiteElo "2192"]
[BlackElo "2433"]
[TimeControl "180+1"]
[EndTime "8:28:39 PDT"]
[Termination "ExchangeAB won by resignation"]

1. e4 {[%clk 0:03:00.9]} 1... c6 {[%clk 0:03:00.9]} 2. d4 {[%clk 0:02:59.9]}
2... d5 {[%clk 0:03:01.8]} 3. Nc3 {[%clk 0:02:57.8]} 3... dxe4 {[%clk
0:03:01.8]} 4. Nxe4 {[%clk 0:02:57.5]} 4... Bf5 {[%clk 0:03:02.6]} 5. Ng3 {[%clk
0:02:57.5]} 5... Bg6 {[%clk 0:02:58.1]} 6. h4 {[%clk 0:02:56.6]} 6... h6 {[%clk
0:02:58.4]} 7. Nf3 {[%clk 0:02:49.5]} 7... Nd7 {[%clk 0:02:58]} 8. h5 {[%clk
0:02:49.5]} 8... Bh7 {[%clk 0:02:57.8]} 9. Bd3 {[%clk 0:02:49.7]} 9... Bxd3
{[%clk 0:02:57.6]} 10. Qxd3 {[%clk 0:02:50.6]} 10... Ngf6 {[%clk 0:02:57.7]} 11.
Bd2 {[%clk 0:02:48.1]} 11... e6 {[%clk 0:02:57.9]} 12. O-O-O {[%clk 0:02:47.9]}
12... Be7 {[%clk 0:02:57.4]} 13. Ne4 {[%clk 0:02:47.1]} 13... Nxe4 {[%clk
0:02:57.5]} 14. Qxe4 {[%clk 0:02:48]} 14... Nf6 {[%clk 0:02:58]} 15. Qe2 {[%clk
0:02:47]} 15... Qd5 {[%clk 0:02:57.9]} 16. c4 {[%clk 0:02:42.7]} 16... Qe4
{[%clk 0:02:58]} 17. Qxe4 {[%clk 0:02:43]} 17... Nxe4 {[%clk 0:02:58.9]} 18. Be3
{[%clk 0:02:43.2]} 18... f5 {[%clk 0:02:59]} 19. Ne5 {[%clk 0:02:41.3]} 19...
Bf6 {[%clk 0:02:53.6]} 20. Ng6 {[%clk 0:02:39.4]} 20... Rg8 {[%clk 0:02:52.1]}
21. f3 {[%clk 0:02:26.5]} 21... Nd6 {[%clk 0:02:45.4]} 22. b3 {[%clk 0:02:17.2]}
22... O-O-O {[%clk 0:02:32]} 23. Rhe1 {[%clk 0:02:17.2]} 23... Rge8 {[%clk
0:02:31.1]} 24. Bf4 {[%clk 0:02:17.1]} 24... Nf7 {[%clk 0:02:27.2]} 25. Be5
{[%clk 0:02:02.3]} 25... Bxe5 {[%clk 0:02:18.8]} 26. dxe5 {[%clk 0:01:36.1]}
26... Rxd1+ {[%clk 0:02:15.7]} 27. Rxd1 {[%clk 0:01:34.6]} 27... Rd8 {[%clk
0:02:12.6]} 28. Rxd8+ {[%clk 0:01:02.9]} 28... Kxd8 {[%clk 0:02:13.5]} 29. Kc2
{[%clk 0:00:55.6]} 29... c5 {[%clk 0:02:12]} 30. Kc3 {[%clk 0:00:52.3]} 30...
Ke8 {[%clk 0:02:11.1]} 31. b4 {[%clk 0:00:47.4]} 31... cxb4+ {[%clk 0:02:02.8]}
32. Kxb4 {[%clk 0:00:47.4]} 32... Nd8 {[%clk 0:02:02.4]} 33. Kc5 {[%clk
0:00:46.1]} 33... Kd7 {[%clk 0:01:58.6]} 34. Nf8+ {[%clk 0:00:41.3]} 34... Kc7
{[%clk 0:01:53.6]} 35. f4 {[%clk 0:00:18.7]} 35... b6+ {[%clk 0:01:53.2]} 36.
Kd4 {[%clk 0:00:19.1]} 36... Kc6 {[%clk 0:01:52.5]} 37. Kc3 {[%clk 0:00:18.2]}
37... b5 {[%clk 0:01:39.9]} 38. cxb5+ {[%clk 0:00:17.5]} 38... Kxb5 {[%clk
0:01:40.8]} 39. g3 {[%clk 0:00:16.2]} 39... Kc5 {[%clk 0:01:36.6]} 40. Ng6
{[%clk 0:00:14.7]} 40... Kd5 {[%clk 0:01:32.6]} 41. Nf8 {[%clk 0:00:15.6]} 41...
Ke4 {[%clk 0:01:30.5]} 42. Kc4 {[%clk 0:00:13.4]} 42... Kf3 {[%clk 0:01:28.2]}
43. Kc5 {[%clk 0:00:14.3]} 43... Kxg3 {[%clk 0:01:28.7]} 44. Kd6 {[%clk
0:00:15.2]} 44... Kxf4 {[%clk 0:01:28.8]} 45. Nxe6+ {[%clk 0:00:16]} 45... Nxe6
{[%clk 0:01:18.4]} 46. Kxe6 {[%clk 0:00:16.9]} 46... Kg4 {[%clk 0:01:12.1]} 47.
Kd6 {[%clk 0:00:17.8]} 47... f4 {[%clk 0:01:12.6]} 48. e6 {[%clk 0:00:18.5]}
48... f3 {[%clk 0:01:13.5]} 49. e7 {[%clk 0:00:19.1]} 49... f2 {[%clk
0:01:14.4]} 50. e8=Q {[%clk 0:00:18.7]} 50... f1=Q {[%clk 0:01:15.3]} 51. Qg6+
{[%clk 0:00:19]} 51... Kh4 {[%clk 0:01:14.3]} 52. Qxg7 {[%clk 0:00:16.8]} 52...
Qd1+ {[%clk 0:01:08]} 53. Kc6 {[%clk 0:00:15.1]} 53... Qc2+ {[%clk 0:01:02.7]}
54. Kd6 {[%clk 0:00:15.3]} 54... Qd3+ {[%clk 0:00:58.8]} 55. Kc6 {[%clk
0:00:15.8]} 55... Qc4+ {[%clk 0:00:57.7]} 56. Kd6 {[%clk 0:00:16.1]} 56... Kxh5
{[%clk 0:00:52.5]} 57. Qxa7 {[%clk 0:00:11.7]} 57... Qd3+ {[%clk 0:00:46.8]} 58.
Kc6 {[%clk 0:00:11.6]} 58... Kh4 {[%clk 0:00:36.7]} 59. a4 {[%clk 0:00:11.4]}
59... h5 {[%clk 0:00:37.1]} 60. a5 {[%clk 0:00:11.4]} 60... Kg3 {[%clk
0:00:36.6]} 61. Qc7+ {[%clk 0:00:08.7]} 61... Kg2 {[%clk 0:00:34.1]} 62. a6
{[%clk 0:00:08.7]} 62... Qxa6+ {[%clk 0:00:33.6]} 0-1